bitfinex/quotes_ETHUSD_20220226
["timestamp","ask_amount","ask_price","bid_price","bid_amount"]
[1645897947302,35.37178091,2796.0,2795.9,8.20046489]
[1645897947504,35.37172459,2796.0,2795.9,8.20046489]
[1645897947709,34.91072351,2796.0,2795.9,8.20046489]
[1645897947904,35.3717311,2796.0,2795.9,8.20046489]
[1645897948202,35.37174088,2796.0,2795.9,8.20046489]
[1645897949004,35.37176334,2796.0,2795.9,8.20046489]
[1645897949206,35.37176437,2796.0,2795.9,8.20046489]
[1645897949808,34.91072351,2796.0,2795.9,8.20046489]
[1645897950550,35.37168818,2796.0,2795.9,8.20046489]
[1645897950750,35.37169123,2796.0,2795.9,8.20046489]
[1645897952363,36.29028058,2796.0,2795.9,5.54102503]
[1645897952561,35.37169123,2796.0,2795.9,5.54102503]
[1645897952760,35.37169123,2796.0,2795.1,0.00484216]
[1645897952761,10.5,2795.9,2795.1,0.00484216]
[1645897952967,3.96096772,2795.8,2795.2,1.06189529]
[1645897953162,12.07431854,2795.9,2795.2,1.06189529]
[1645897953163,3.96096772,2795.7,2795.2,1.06189529]
[1645897953364,3.5,2795.3,2795.2,1.06189529]
[1645897953562,1.47556772,2795.3,2795.2,1.06189529]
[1645897953762,4.97556772,2795.3,2794.6,0.00372222]
[1645897953961,0.46096772,2795.2,2795.1,0.00484185]
[1645897954212,3.96096772,2795.2,2795.1,0.00484185]
[1645897954811,3.96096772,2795.2,2794.6,0.00372222]
[1645897955011,0.46096772,2795.1,2795.0,0.00467838]
[1645897955207,3.96096772,2795.1,2795.0,0.00467838]
[1645897956108,3.96096772,2795.1,2794.9,0.00467854]
[1645897956308,3.96096772,2795.0,2794.9,0.00467854]
[1645897956911,0.46096772,2795.0,2794.9,0.00467854]
[1645897957113,0.46096772,2795.0,2794.5,6.88593463]
[1645897957411,3.5,2795.2,2794.8,0.00467864]
[1645897957412,0.46096772,2794.9,2794.8,0.00467864]
[1645897958257,0.46096772,2794.9,2794.5,6.88593463]
[1645897958453,0.46096772,2794.8,2794.5,6.88593463]
[1645897958654,5.10664284,2795.2,2794.7,0.00451998]
[1645897958851,0.45404939,2795.1,2794.7,0.00451998]
[1645897959051,3.5,2795.0,2794.7,0.00451998]
[1645897959253,0.45404939,2794.9,2794.7,0.00451998]
[1645897959453,0.45404939,2794.9,2794.5,6.88593463]
[1645897959454,3.5,2794.8,2794.5,6.88593463]
[1645897959653,0.45404939,2794.7,2794.5,6.88593463]
[1645897959854,0.45404939,2794.6,2794.5,6.88593463]
[1645897960156,0.45404939,2794.6,2794.5,7.92450228]
[1645897960554,0.45404939,2795.0,2794.5,7.92450228]
[1645897960761,0.45404939,2794.9,2794.5,6.88593463]
[1645897960962,0.45404939,2794.8,2794.5,6.88593463]
[1645897961157,0.45404939,2794.7,2794.5,6.88593463]
[1645897961358,0.45404939,2794.6,2794.5,6.88593463]
[1645897961831,0.45404939,2795.0,2794.5,6.88593463]
[1645897963035,0.46174006,2794.9,2794.5,6.88593463]
[1645897963235,0.46174006,2794.8,2794.5,6.88593463]
[1645897963439,0.3,2795.2,2794.6,0.00495669]
[1645897963634,0.46157725,2795.1,2794.5,6.64089132]
[1645897964036,0.46157725,2795.0,2794.5,6.64089132]
[1645897964436,0.46157725,2794.9,2794.5,6.64089132]
[1645897964637,0.46157725,2794.8,2794.5,6.64089132]
[1645897964839,3.8,2795.3,2794.5,6.64089132]
[1645897965038,0.46144928,2795.2,2794.6,1.03723037]
[1645897966361,0.32977128,2795.2,2794.6,1.03723037]
[1645897966560,0.32977128,2795.2,2794.6,1.93215037]
[1645897966762,0.32977128,2795.2,2794.6,0.89492]
[1645897967962,0.32977128,2795.2,2794.6,0.70771907]
[1645897969409,3.50481172,2795.4,2794.6,0.70771907]
[1645897969608,3.50481172,2795.4,2794.6,0.71144129]
[1645897969809,0.00481172,2795.4,2794.6,0.71144129]
[1645897970007,0.00481172,2795.4,2794.6,1.71144129]
[1645897970208,1.3,2795.5,2794.6,1.71144129]
[1645897970613,0.0048118,2795.4,2794.6,1.71144129]
[1645897970808,0.0048118,2795.4,2794.9,1.09109595]
[1645897971023,0.0048118,2795.4,2794.9,1.98592595]
[1645897971514,0.9126813,2795.9,2795.0,0.89464]
[1645897971712,0.00349035,2795.9,2795.0,0.89464]
[1645897971912,0.00481191,2795.4,2795.0,0.89464]
[1645897972312,0.00481191,2795.4,2795.0,2.68386]
[1645897972511,0.00481191,2795.4,2795.1,0.89464]
[1645897972712,0.00349035,2795.9,2795.4,0.00640983]
[1645897972978,0.0192438,2795.9,2795.4,0.00640983]
[1645897974081,0.00481374,2795.8,2795.4,0.00640983]
[1645897974482,0.00481374,2795.8,2795.4,0.90105983]
[1645897975084,34.91421386,2796.0,2795.4,0.90105983]
[1645897975284,0.00481379,2795.7,2795.4,0.90105983]
[1645897976291,34.91072351,2796.0,2795.4,0.90105983]
[1645897976486,0.00451382,2795.7,2795.4,0.90105983]
[1645897977312,0.00451382,2795.7,2795.5,1.0]
[1645897977512,34.91072351,2796.0,2795.4,0.90105983]
[1645897977713,0.00451349,2795.7,2795.6,1.0]
[1645897978012,0.00451349,2795.7,2795.4,0.90105983]
[1645897978820,34.91072351,2796.0,2795.5,1.0]
[1645897979018,0.00451349,2795.7,2795.5,1.0]
[1645897979618,0.00451349,2795.7,2795.6,1.0]
[1645897979817,34.91072351,2796.0,2795.6,1.0]
[1645897980218,0.00451344,2795.7,2795.6,1.0]
[1645897980465,0.00451344,2795.7,2795.4,0.90105983]
[1645897981068,34.91072351,2796.0,2795.4,0.90105983]
[1645897981269,0.0045431,2795.7,2795.4,0.90105983]
[1645897982269,34.91072351,2796.0,2795.4,0.90105983]
[1645897982567,0.0045431,2795.7,2795.4,0.90105983]
[1645897983571,34.91072351,2796.0,2795.4,0.90105983]
[1645897983772,0.0045431,2795.7,2795.4,0.90105983]
[1645897984814,34.91072351,2796.0,2795.4,0.90105983]
[1645897985014,0.00454015,2795.7,2795.4,0.90105983]
[1645897985417,0.00454015,2795.7,2795.4,0.89992231]
[1645897985819,34.91072351,2796.0,2795.4,0.89992231]
[1645897986218,0.00454015,2795.7,2795.4,0.89992231]
[1645897986418,0.00454015,2795.7,2795.5,0.99679437]
[1645897987220,34.91072351,2796.0,2795.5,0.99679437]
[1645897987421,0.00454011,2795.7,2795.5,0.99679437]
[1645897987620,0.00454011,2795.7,2795.4,0.89992231]
[1645897987870,0.00454011,2795.7,2795.5,0.99692601]
[1645897988064,0.00454011,2795.7,2795.5,1.99692601]
[1645897988263,34.91072351,2796.0,2795.5,4.5]
[1645897988465,0.50084095,2795.9,2795.5,1.0]
[1645897988664,0.00454047,2795.7,2795.5,1.0]
[1645897988863,0.12595405,2795.6,2795.5,1.0]
[1645897989464,0.12595405,2795.6,2795.5,4.5]
[1645897989666,0.12595405,2795.6,2795.5,5.49701213]
[1645897990267,0.12595405,2795.6,2795.5,4.5]
[1645897990466,0.12595405,2795.6,2795.5,1.0]
[1645897991267,0.12595405,2795.6,2795.5,1.99726069]
[1645897991467,0.12595405,2795.6,2795.5,5.49726069]
[1645897992111,0.12595405,2795.6,2795.5,1.99726069]
[1645897992712,0.00454047,2795.7,2795.6,0.04180348]
[1645897993114,34.91072351,2796.0,2795.6,1.03689883]
[1645897993312,0.00454037,2795.8,2795.6,0.04180348]
[1645897993515,0.50349286,2795.7,2795.6,0.04180348]
[1645897997175,0.00454038,2795.8,2795.6,0.04180348]
[1645897997367,0.50213988,2795.7,2795.6,0.04180348]
[1645898000622,0.00454038,2795.8,2795.6,0.04180348]
[1645898000821,0.50213988,2795.7,2795.6,0.04180348]
[1645898001821,34.91072351,2796.0,2795.6,1.04025962]
[1645898001822,0.00454038,2795.8,2795.6,1.04025962]
[1645898002121,0.50213988,2795.7,2795.6,0.04180348]
[1645898002522,0.50213988,2795.7,2795.6,1.04021765]
[1645898004062,0.50213988,2795.9,2795.6,1.04021765]
[1645898004264,0.50213988,2795.9,2795.7,1.89299417]
[1645898004265,0.00454038,2795.8,2795.7,1.89299417]
[1645898004463,0.50668026,2795.8,2795.7,0.89458]
[1645898005065,0.50213988,2795.8,2795.7,0.89458]
[1645898005264,0.50213988,2795.9,2795.7,0.89458]
[1645898005464,0.50668016,2795.9,2795.7,0.89458]
[1645898005666,0.50213988,2795.8,2795.7,0.89458]
[1645898006067,0.50668016,2795.9,2795.7,1.89404385]
[1645898006271,0.50213988,2795.8,2795.7,5.39458]
[1645898006468,0.50213988,2795.8,2795.7,6.53694414]
[1645898006726,0.5072785,2795.9,2795.7,7.05294414]
[1645898006925,0.00454028,2795.9,2795.8,4.49946414]
[1645898007126,0.50725509,2795.9,2795.8,4.49946414]
[1645898007531,0.50271481,2795.9,2795.8,4.49946414]
[1645898007727,0.50271481,2795.9,2795.8,0.99946414]
[1645898012867,0.50271481,2795.9,2795.8,1.0012374]
[1645898013067,0.50271481,2795.9,2795.8,1.00121916]
[1645898013265,0.50271481,2795.9,2795.8,1.00125788]
[1645898013564,0.50271481,2795.9,2795.7,0.89458]
[1645898013766,0.50271481,2795.9,2795.8,1.00152816]
[1645898013966,0.50271481,2795.9,2795.8,1.0015201]
[1645898014217,0.50271481,2795.9,2795.7,0.89458]
[1645898014415,0.50271481,2795.9,2795.8,1.00137653]
[1645898015014,0.50725503,2795.9,2795.8,1.00137653]
[1645898015221,0.50725503,2795.9,2795.8,2.00137653]
[1645898015414,0.50725503,2795.9,2795.8,1.00137653]
[1645898016016,0.50271481,2795.9,2795.8,1.00226086]
[1645898016218,0.50271481,2795.9,2795.8,2.00199972]
[1645898016418,0.50271481,2795.9,2795.8,1.0]
[1645898016617,0.50271481,2795.9,2795.8,1.00212187]
[1645898017218,0.50271481,2795.9,2795.7,0.89458]
[1645898017876,0.50271481,2795.9,2795.8,1.00224393]
[1645898018064,0.50271481,2795.9,2795.7,0.89458]
[1645898018264,0.50271481,2795.9,2795.8,1.00211535]
[1645898018468,0.50271481,2795.9,2795.8,1.00212347]
[1645898018664,0.50271481,2795.9,2795.7,0.89458]
[1645898018864,0.50271481,2795.9,2795.8,1.00209448]
[1645898019067,0.50271481,2795.9,2795.8,2.00202864]
[1645898019265,0.50271481,2795.9,2795.8,2.00209016]
[1645898019465,0.50271481,2795.9,2795.8,1.0]
[1645898019666,0.50271481,2795.9,2795.8,2.00206995]
[1645898019864,0.50271481,2795.9,2795.8,2.0020986]
[1645898020063,0.50271481,2795.9,2795.8,2.00209518]
[1645898020265,0.50271481,2795.9,2795.8,1.0]
[1645898020469,0.50271481,2795.9,2795.8,1.00211074]
[1645898020670,0.50271481,2795.9,2795.8,1.0019769]
[1645898021169,0.50271481,2795.9,2795.7,0.89458]
[1645898021612,0.50271481,2795.9,2795.8,1.00223447]
[1645898021815,0.50271481,2795.9,2795.7,0.89458]
[1645898022019,0.50271481,2795.9,2795.8,1.00221235]
[1645898022220,0.50725504,2795.9,2795.7,0.89458]
[1645898022421,1.45099429,2795.9,2795.8,1.00228855]
[1645898022621,1.45099429,2795.9,2795.7,0.89458]
[1645898022923,0.50271481,2795.8,2795.7,0.89458]
[1645898023124,0.94827948,2795.9,2795.7,0.89458]
[1645898023125,1.44645406,2795.9,2795.7,0.89458]
[1645898023322,0.50271481,2795.8,2795.7,1.8968298]
[1645898023520,0.50725503,2795.9,2795.7,1.8968298]
[1645898023720,0.50725503,2795.9,2795.7,0.89458]
[1645898023721,0.50271481,2795.8,2795.7,0.89458]
[1645898023923,0.50725503,2795.9,2795.7,1.89664663]
[1645898024127,0.50725503,2795.9,2795.8,1.00206663]
[1645898024325,1.44649325,2795.9,2795.7,0.89458]
[1645898024626,0.50444398,2795.8,2795.7,0.89458]
[1645898025026,0.50444398,2795.8,2795.7,1.8967732]
[1645898027274,1.45281507,2795.9,2795.7,1.8967732]
[1645898027475,0.50444398,2795.8,2795.7,0.89458]
[1645898027975,0.50444398,2795.8,2795.7,1.89685097]
[1645898029412,0.50898425,2795.9,2795.7,1.89685097]
[1645898029614,0.50898425,2795.9,2795.7,0.89458]
[1645898029615,0.50444398,2795.8,2795.7,0.89458]
[1645898029817,0.50444398,2795.8,2795.7,1.89676497]
[1645898030616,0.00454027,2795.9,2795.7,1.89676497]
[1645898030821,0.00454027,2795.9,2795.8,1.00210782]
[1645898031016,0.5089836,2795.9,2795.8,1.00210782]
[1645898031618,0.50444333,2795.9,2795.8,1.00210782]
[1645898032223,0.50444333,2795.9,2795.8,0.95210782]
[1645898032871,0.50444333,2795.9,2795.7,0.89458]
[1645898034166,0.50898355,2795.9,2795.7,0.89458]
[1645898034367,0.00454022,2795.9,2795.7,0.89458]
[1645898035066,34.91072351,2796.0,2795.7,0.89458]
[1645898035265,34.91072351,2796.0,2795.7,1.78906]
[1645898035469,0.00454022,2795.9,2795.7,1.78906]
[1645898036268,34.91072351,2796.0,2795.7,1.78906]
[1645898036725,0.00454022,2795.9,2795.7,1.78906]
[1645898037523,34.91072351,2796.0,2795.7,1.78906]
[1645898037723,0.00454023,2795.9,2795.7,1.78906]
[1645898037923,0.00454023,2795.9,2795.7,2.68349]
[1645898038125,34.91072351,2796.0,2795.9,0.00149625]
[1645898039023,34.91072351,2796.0,2795.9,1.00149625]
[1645898041666,34.91072351,2796.0,2795.9,0.00149625]
[1645898043674,35.87016636,2796.0,2795.9,0.00149625]
[1645898044942,34.91072351,2796.0,2795.9,0.00149625]
[1645898050471,35.8707505,2796.0,2795.9,0.00149625]
[1645898051275,34.91072351,2796.0,2795.9,0.00149625]
[1645898051921,34.91072351,2796.0,2795.9,1.28283656]
[1645898052124,34.91072351,2796.0,2795.9,4.78283656]
[1645898052322,35.43425207,2796.0,2795.9,3.26626095]
[1645898052722,35.43425207,2796.0,2795.9,6.76626095]
[1645898052927,0.67824284,2796.6,2796.0,12.0]
[1645898053129,0.90431105,2796.8,2796.4,5.0]
[1645898053130,0.67824284,2796.8,2796.4,5.0]
[1645898053330,0.51514761,2797.2,2796.6,5.0]
[1645898053525,0.51514761,2797.2,2796.5,16.49570107]
[1645898053526,0.51514761,2797.4,2796.9,5.0]
[1645898053826,1.35357639,2798.2,2797.1,12.0]
[1645898054034,1.8021565,2798.5,2797.4,0.89381]
[1645898054035,1.35357639,2798.3,2797.4,0.89381]
[1645898054228,1.35357639,2798.3,2797.5,4.016]
[1645898054426,1.35357639,2798.5,2797.6,0.89374]
[1645898054626,0.0051487,2797.8,2797.6,2.3034789]
[1645898054830,0.0051487,2797.8,2797.5,5.6538]
[1645898054831,0.0051487,2797.8,2797.5,1.0]
[1645898055127,0.0051487,2797.8,2797.3,6.64089132]
[1645898055594,0.5,2798.2,2797.3,6.64089132]
[1645898055796,0.00514881,2797.7,2797.3,6.64089132]
[1645898056796,1.22131527,2797.9,2797.3,6.64089132]
[1645898056996,0.00514886,2797.6,2797.3,6.64089132]
[1645898057997,1.22131527,2797.9,2797.3,5.02927028]
[1645898058199,0.00514891,2797.6,2797.3,5.02927028]
[1645898059130,1.22131527,2797.9,2797.3,5.02927028]
[1645898059529,0.00514891,2797.6,2797.3,5.02927028]
[1645898060228,0.00514891,2797.6,2797.2,1.78806]
[1645898060430,0.00347427,2797.9,2797.2,1.78806]
[1645898060630,0.00514891,2797.6,2797.2,1.78806]
[1645898060832,1.36284911,2797.6,2797.2,1.78806]
[1645898061531,1.36284911,2797.6,2797.0,7.1505]
[1645898061532,1.3577002,2797.6,2797.0,7.1505]
[1645898061932,0.00514896,2797.5,2797.0,7.1505]
[1645898062736,1.3577002,2797.6,2797.0,7.1505]
[1645898062990,0.00514912,2797.4,2797.0,7.1505]
[1645898063992,0.67455499,2797.5,2797.0,7.1505]
[1645898064300,1.8006002,2797.6,2797.0,7.1505]
[1645898064301,0.67970416,2797.3,2797.0,7.1505]
[1645898064499,3.41234325,2797.2,2797.0,7.1505]
[1645898064698,0.1429,2797.2,2797.0,7.1505]
[1645898064894,1.0,2797.1,2797.0,7.1505]
[1645898065096,1.67455499,2797.1,2797.0,7.1505]
[1645898065295,0.97455499,2797.1,2797.0,7.1505]
[1645898065496,2.2904967,2797.1,2797.0,7.1505]
[1645898065897,1.61594171,2797.1,2797.0,7.1505]
[1645898067726,2.2904967,2797.1,2797.0,7.1505]
[1645898069930,1.61594171,2797.1,2797.0,7.1505]
[1645898070379,3.2904967,2797.1,2797.0,7.1505]
[1645898070574,2.2904967,2797.1,2797.0,7.1505]
[1645898071177,2.61594171,2797.1,2797.0,7.1505]
[1645898071575,4.29097835,2797.1,2797.0,7.1505]
[1645898071778,3.29097835,2797.1,2797.0,7.1505]
[1645898071977,4.29097835,2797.1,2797.0,7.1505]
[1645898073984,3.72483658,2797.1,2797.0,7.1505]
[1645898077440,2.72483658,2797.1,2797.0,7.1505]
[1645898078070,2.04979994,2797.1,2797.0,5.53845421]
[1645898078270,2.72514762,2797.1,2797.0,5.53845421]
[1645898078474,2.04979994,2797.1,2797.0,5.53845421]
[1645898078975,2.72519413,2797.1,2797.0,5.53845421]
[1645898079177,3.72519413,2797.1,2797.0,5.53845421]
[1645898079576,3.04979994,2797.1,2797.0,5.53845421]
[1645898079778,2.72524515,2797.1,2797.0,5.53845421]
[1645898081928,2.04979994,2797.1,2797.0,5.53845421]
[1645898086480,5.54979994,2797.1,2797.0,5.53845421]
[1645898086880,2.04979994,2797.1,2797.0,5.53845421]
[1645898087479,5.54979994,2797.1,2797.0,5.53845421]
[1645898087883,2.04979994,2797.1,2797.0,5.53845421]
[1645898088281,1.74979994,2797.1,2797.0,5.53845421]
[1645898088486,2.04979994,2797.1,2797.0,5.53845421]
[1645898088682,3.04979994,2797.1,2797.0,5.53845421]
[1645898088884,3.72561372,2797.1,2797.0,5.53845421]
[1645898092623,3.04979994,2797.1,2797.0,5.53845421]
[1645898093476,6.54979994,2797.1,2797.0,5.53845421]
[1645898093674,5.54979994,2797.1,2797.0,5.53845421]
[1645898094372,2.04979994,2797.1,2797.0,5.53845421]
[1645898095376,2.72609601,2797.1,2797.0,5.53845421]
[1645898095774,1.74979994,2797.1,2797.0,5.53845421]
[1645898095974,2.42622526,2797.1,2797.0,5.53845421]
[1645898096825,1.11028355,2797.1,2797.0,5.53845421]
[1645898097028,0.43385823,2797.1,2797.0,5.53845421]
[1645898098226,0.43385823,2797.1,2797.0,3.92661898]
[1645898100468,1.11028355,2797.1,2797.0,3.92661898]
[1645898100676,0.43385823,2797.1,2797.0,3.92661898]
[1645898102076,1.11028355,2797.1,2797.0,3.92661898]
[1645898102475,0.43385823,2797.1,2797.0,3.92661898]
[1645898102677,1.11028355,2797.1,2797.0,3.92661898]
[1645898103279,0.43385823,2797.1,2797.0,3.92661898]
[1645898103475,1.11028355,2797.1,2797.0,3.92661898]
[1645898104122,0.43385823,2797.1,2797.0,3.92661898]
[1645898104323,1.7604369,2797.1,2797.0,3.92661898]
[1645898104523,2.43843456,2797.1,2797.0,3.92661898]
[1645898104722,2.43844536,2797.1,2797.0,3.92661898]
[1645898105129,1.7604369,2797.1,2797.0,3.92661898]
[1645898106129,2.65987856,2797.1,2797.0,3.92661898]
[1645898106327,2.65987856,2797.1,2797.0,3.87661898]
[1645898107531,2.6654133,2797.1,2797.0,3.87661898]
[1645898108572,1.7604369,2797.1,2797.0,3.87661898]
[1645898110771,2.66551876,2797.1,2797.0,3.87661898]
[1645898113240,1.7604369,2797.1,2797.0,3.87661898]
[1645898115880,2.66551876,2797.1,2797.0,3.87661898]
[1645898116078,3.66551876,2797.1,2797.0,3.87661898]
[1645898117082,2.66551876,2797.1,2797.0,3.87661898]
[1645898117286,1.7604369,2797.1,2797.0,3.87661898]
[1645898117889,2.66551876,2797.1,2797.0,3.87661898]
[1645898118283,1.7604369,2797.1,2797.0,2.26469153]
[1645898118485,2.66551876,2797.1,2797.0,2.26469153]
[1645898118685,12.0,2796.8,2795.6,1.83071348]
[1645898118918,5.01233251,2796.4,2795.7,1.11831344]
[1645898119143,5.0,2795.8,2795.3,0.3136382]
[1645898119337,12.0,2795.3,2794.4,0.14973341]
[1645898119537,12.0,2795.3,2794.5,0.96227996]
[1645898119538,0.6784467,2795.0,2794.5,0.96227996]
[1645898119732,3.5,2794.6,2794.3,0.96227996]
[1645898119931,1.3446241,2794.7,2793.8,1.95439969]
[1645898119932,1.3446241,2794.7,2794.6,0.95855694]
[1645898120138,8.0,2794.6,2794.4,0.84259744]
[1645898120338,8.0,2794.6,2793.7,0.00372302]
[1645898120339,0.66309088,2794.5,2793.7,0.00372302]
[1645898120535,0.66309088,2794.5,2793.8,0.00372302]
[1645898120735,3.5,2795.1,2793.8,1.037803]
[1645898120933,0.6784467,2795.2,2793.9,1.04464161]
[1645898120934,0.99416911,2795.0,2793.9,1.04464161]
[1645898121134,7.4406,2795.3,2793.9,1.04464161]
[1645898121135,0.5,2794.2,2794.0,0.69056463]
[1645898121336,0.5,2794.2,2793.9,0.3578]
[1645898121337,3.6431,2795.1,2794.1,0.69056463]
[1645898121538,3.6431,2795.1,2794.2,0.68684161]
[1645898121539,1.1621964,2794.7,2794.2,0.68684161]
[1645898121737,1.1621964,2794.7,2794.0,1.37040331]
[1645898121738,0.84997839,2794.6,2794.3,0.68684161]
[1645898121934,0.84997839,2794.6,2794.4,0.68684161]
[1645898122138,1.1621964,2794.7,2793.9,0.36152302]
[1645898122336,2.1621964,2794.7,2794.0,0.64953094]
[1645898123372,1.0,2794.7,2794.1,0.89506]
[1645898123574,1.1431,2795.1,2794.2,0.64953094]
[1645898123776,1.1431,2795.1,2794.2,0.65325396]
[1645898123777,1.84837536,2795.0,2794.2,0.65325396]
[1645898123976,0.84837536,2794.9,2794.3,0.64953094]
[1645898124179,0.84837536,2794.9,2794.3,0.65325396]
[1645898124377,0.84837536,2794.9,2794.5,0.00502187]
[1645898124575,1.0,2795.0,2794.5,0.00502187]
[1645898125377,1.0,2795.0,2794.3,0.00372302]
[1645898125577,1.0,2795.0,2794.6,0.00502177]
[1645898126179,1.023404,2794.7,2794.6,0.00502177]
[1645898126379,2.023404,2794.7,2794.6,0.00502177]
[1645898126622,2.023404,2794.7,2794.3,0.00372302]
[1645898126832,2.023404,2794.7,2794.2,0.56931656]
[1645898128031,2.023404,2794.7,2794.3,0.00502208]
[1645898128932,2.023404,2794.7,2794.1,0.14682302]
[1645898129134,2.023404,2794.7,2794.4,0.00483744]
[1645898130140,2.023404,2794.7,2794.1,0.00372302]
[1645898130372,2.023404,2794.7,2794.4,0.00483738]
[1645898131380,2.023404,2794.7,2794.1,0.00372302]
[1645898131582,2.023404,2794.7,2794.4,0.00483738]
[1645898131989,1.023404,2794.7,2794.4,0.00483738]
[1645898132184,1.0,2794.5,2794.4,0.00483738]
[1645898132385,4.5,2794.5,2794.4,0.00483738]
[1645898132585,4.5,2794.5,2793.9,0.00372302]
[1645898132785,4.5,2794.5,2793.8,1.1968]
[1645898132786,1.0,2793.9,2793.8,1.1968]
[1645898132989,5.9362102,2793.9,2793.8,1.1968]
[1645898133187,5.9362102,2793.9,2793.5,0.00372302]
[1645898133384,5.9362102,2793.9,2792.9,0.25]
[1645898133385,5.9362102,2793.9,2793.3,7.36372302]
[1645898133587,4.9362102,2793.9,2793.3,7.36]
[1645898133787,1.0,2793.8,2793.3,7.36]
[1645898134130,1.0,2793.8,2793.6,0.00485065]
[1645898135024,1.0,2793.8,2793.3,7.36]
[1645898135225,1.4362102,2793.9,2793.6,0.00485065]
[1645898135423,1.0,2793.8,2793.6,0.00485065]
[1645898136024,1.0,2793.8,2793.3,7.36]
[1645898136426,1.0,2793.8,2793.6,0.00484984]
[1645898137327,1.0,2793.8,2793.3,7.36]
[1645898137626,1.0,2793.8,2793.6,0.00484984]
[1645898137627,4.5,2793.8,2793.6,0.00484984]
[1645898137871,1.0,2793.8,2793.6,0.00484984]
[1645898138470,1.0,2793.8,2793.3,7.36]
[1645898138673,1.0,2793.8,2793.6,0.00484984]
[1645898138876,0.1431,2794.2,2793.7,10.0]
[1645898139077,12.8045,2794.7,2793.7,10.0]
[1645898139277,3.2017,2794.7,2793.8,0.00372302]
[1645898139478,3.2017,2794.7,2793.6,0.00857286]
[1645898139682,3.2017,2794.7,2793.6,0.00372302]
[1645898139878,4.2017,2794.7,2794.1,0.00484931]
[1645898140080,0.00142749,2794.0,2793.6,0.00372302]
[1645898140280,0.00142749,2794.0,2793.7,1.25481589]
[1645898140481,0.00142749,2794.0,2793.7,2.14999589]
[1645898143129,0.00142749,2794.0,2793.7,0.89518]
[1645898143529,0.00142749,2794.0,2793.7,0.00514983]
[1645898144529,0.00142749,2794.0,2793.6,1.14871104]
[1645898144729,0.00142749,2794.0,2793.7,0.00514983]
[1645898145675,0.00142749,2794.0,2793.4,2.94134302]
[1645898146079,0.00142749,2794.0,2793.7,0.00514983]
[1645898146275,0.00142749,2794.0,2793.8,1.1294704]
[1645898147075,0.00142749,2794.0,2793.8,1.13462018]
[1645898147275,0.00142749,2794.0,2793.8,0.00514978]
[1645898148277,0.00142749,2794.0,2793.4,2.94134302]
[1645898148479,0.00142749,2794.0,2793.8,0.00514978]
[1645898149324,0.00142749,2794.0,2793.4,2.94134302]
[1645898149521,0.00142749,2794.0,2793.8,0.00514978]
[1645898149720,0.00142749,2794.0,2793.8,1.16477523]
[1645898150127,0.00142749,2794.0,2793.8,2.95486523]
[1645898150525,0.00142749,2794.0,2793.9,0.1431]
[1645898150726,0.00142749,2794.0,2793.9,1.2438]
[1645898156502,0.00142749,2794.0,2793.4,7.64708302]
[1645898156724,0.00142749,2794.0,2793.8,0.00514973]
[1645898157625,0.00142749,2794.0,2793.5,0.00372302]
[1645898157827,0.00142749,2794.0,2793.4,3.10554386]
[1645898158129,0.00142749,2794.0,2793.8,0.00514978]
[1645898158927,0.00142749,2794.0,2793.7,0.89519]
[1645898159127,0.00142749,2794.0,2793.8,0.53188986]
[1645898159328,0.00142749,2794.0,2793.8,0.00514978]
[1645898160125,0.00142749,2794.0,2793.9,0.52720889]
[1645898160380,0.00142749,2794.0,2793.9,0.52722003]
[1645898160984,0.00142749,2794.0,2793.9,4.02722003]
[1645898162389,0.00032486,2794.0,2793.9,14.52241603]
[1645898163401,0.96838536,2794.9,2794.0,6.50372402]
[1645898163590,0.96838536,2794.9,2794.1,3.5]
[1645898163792,0.96838536,2794.9,2794.1,3.50372402]
[1645898164330,1.78751035,2795.0,2794.1,3.50372402]
[1645898164527,1.78751035,2795.0,2794.2,0.00372402]
[1645898165029,1.0,2794.9,2794.2,0.00372402]
[1645898166536,1.78751035,2795.0,2794.2,0.00372402]
[1645898166737,1.0,2794.8,2794.0,4.66662219]
[1645898166934,1.0,2794.8,2794.1,0.00372402]
[1645898167133,1.0,2794.8,2794.3,1.0]
[1645898167335,1.0,2794.8,2794.1,0.00372402]
[1645898167538,0.6784467,2794.8,2794.1,0.00372402]
[1645898167739,1.0,2794.7,2794.1,0.00372402]
[1645898167968,1.0,2794.7,2794.0,1.1628981]
[1645898167969,1.10510973,2794.3,2794.0,1.1628981]
[1645898168372,1.0,2794.7,2794.0,0.0049981]
[1645898168575,1.0,2794.7,2793.9,10.49892002]
[1645898168770,1.0,2794.7,2794.0,0.00499788]
[1645898168970,1.0,2794.6,2794.0,0.00499788]
[1645898169773,1.0,2794.6,2793.9,10.49892002]
[1645898169971,1.31864814,2794.3,2794.0,0.00514973]
[1645898170573,1.0,2794.5,2794.0,0.00514973]
[1645898171077,1.0,2794.5,2793.9,10.49892002]
[1645898171275,1.0,2794.5,2794.0,0.00514969]
[1645898171477,1.05073836,2794.4,2794.0,0.00514969]
[1645898171928,1.9784467,2794.8,2794.0,0.00514969]
[1645898172224,1.9784467,2794.8,2793.9,10.49892002]
[1645898172527,1.9784467,2794.8,2794.0,0.00514965]
[1645898173324,1.9784467,2794.8,2793.9,10.49892002]
[1645898173527,1.07411665,2794.5,2793.9,10.49892002]
[1645898173733,1.07411665,2794.5,2794.0,0.00480231]
[1645898174628,1.07411665,2794.5,2793.9,10.49892002]
[1645898174832,1.07411665,2794.5,2794.0,0.00480219]
[1645898175685,1.07411665,2794.5,2793.9,10.49892002]
[1645898176085,1.07411665,2794.5,2794.0,0.00259492]
[1645898176890,1.07411665,2794.5,2793.9,10.49892002]
[1645898177291,1.07411665,2794.5,2794.0,0.00481876]
[1645898177693,1.37411665,2794.5,2794.0,0.00481876]
[1645898177894,0.6784467,2794.4,2794.0,0.00481876]
[1645898178094,1.0,2794.1,2794.0,0.00481876]
[1645898178293,1.0,2794.1,2793.9,10.495196]
[1645898178497,1.0,2794.0,2793.9,10.495196]
[1645898178692,2.20134577,2794.0,2793.9,10.495196]
[1645898179736,1.20134577,2794.0,2793.9,10.495196]
[1645898180137,1.50134577,2794.0,2793.9,8.88184234]
[1645898181138,2.50134577,2794.0,2793.9,8.88184234]
[1645898181336,1.50134577,2794.0,2793.9,8.88184234]
[1645898181739,2.50134577,2794.0,2793.9,8.88184234]
[1645898183373,3.46873834,2794.0,2793.9,9.42232937]
[1645898183873,4.14718504,2794.0,2793.9,8.88184234]
[1645898184474,3.46873834,2794.0,2793.9,8.88184234]
[1645898184674,4.14718504,2794.0,2793.9,8.88184234]
[1645898184876,3.46873834,2794.0,2793.9,8.88184234]
[1645898189440,2.26739257,2794.0,2793.9,8.88184234]
[1645898190243,1.26739257,2794.0,2793.9,8.88184234]